fUSD/lending_fUSD_20251112
["ID","MTS","AMOUNT","RATE_DAILY","PERIOD"]
[393753044,1762964563665,-500.0,0.00049,120]
[393753045,1762964563708,-500.0,0.00049,120]
[393753046,1762964563750,-500.0,0.00049,120]
[393753047,1762964563794,-500.0,0.00049,120]
[393753048,1762964563838,-500.0,0.00049,120]
[393753049,1762964563882,-500.0,0.00049,120]
[393753050,1762964563925,-500.0,0.00049,120]
[393753051,1762964563969,-500.0,0.00049,120]
[393753052,1762964564013,-500.0,0.00049,120]
[393753053,1762964564056,-500.0,0.00049,120]
[393753054,1762964564098,-500.0,0.00049,120]
[393753055,1762964564141,-500.0,0.00049,120]
[393753056,1762964564182,-500.0,0.00049,120]
[393753057,1762964564224,-500.0,0.00049,120]
[393753058,1762964564270,-500.0,0.00049,120]
[393753059,1762964564315,-500.0,0.00049,120]
[393753060,1762964564359,-500.0,0.00049,120]
[393753061,1762964564401,-500.0,0.00049,120]
[393753062,1762964564444,-500.0,0.00049,120]
[393753063,1762964564488,-500.0,0.00049,120]
[393753064,1762964564534,-500.0,0.00049,120]
[393753065,1762964564579,-500.0,0.00049,120]
[393753066,1762964564623,-500.0,0.00049,120]
[393753067,1762964564666,-500.0,0.00049,120]
[393753068,1762964564710,-500.0,0.00049,120]
[393753069,1762964564755,-500.0,0.00049,120]
[393753070,1762964564802,-500.0,0.00049,120]
[393753071,1762964564850,-500.0,0.00049,120]
[393753072,1762964564894,-500.0,0.00049,120]
[393753073,1762964564940,-500.0,0.00049,120]
[393753074,1762964564985,-500.0,0.00049,120]
[393753075,1762964565033,-500.0,0.00049,120]
[393753076,1762964565076,-500.0,0.00049,120]
[393753077,1762964565119,-500.0,0.00049,120]
[393753078,1762964565164,-500.0,0.00049,120]
[393753079,1762964565208,-701.0,0.00049,120]
[393753080,1762964565252,-596.0,0.00049,120]
[393753081,1762964565294,-500.0,0.00049,120]
[393753082,1762964565334,-500.0,0.00049,120]
[393753083,1762964565376,-500.0,0.00049,120]
[393753084,1762964565421,-500.0,0.00049,120]
[393753085,1762964565464,-500.0,0.00049,120]
[393753086,1762964565505,-500.0,0.00049,120]
[393753087,1762964565549,-500.0,0.00049,120]
[393753088,1762964565590,-500.0,0.00049,120]
[393753089,1762964565631,-500.0,0.00049,120]
[393753090,1762964565672,-500.0,0.00049,120]
[393753091,1762964565713,-500.0,0.00049,120]
[393753092,1762964565756,-500.0,0.00049,120]
[393753093,1762964565802,-500.0,0.00049,120]
[393753094,1762964565851,-500.0,0.00049,120]
[393753095,1762964565895,-500.0,0.00049,120]
[393753096,1762964565939,-500.0,0.00049,120]
[393753097,1762964565982,-500.0,0.00049,120]
[393753098,1762964566029,-500.0,0.00049,120]
[393753099,1762964566074,-500.0,0.00049,120]
[393753100,1762964566118,-500.0,0.00049,120]
[393753101,1762964566159,-500.0,0.00049,120]
[393753102,1762964566203,-500.0,0.00049,120]
[393753103,1762964566245,-665.0,0.00049,120]
[393753104,1762964566288,-150.0,0.00049015,30]
[393753105,1762964566330,-197.77697458,0.00049015,30]
[393753106,1762964566375,-150.0,0.00049015,30]
[393753107,1762964566418,-151.09060024,0.00049015,30]
[393753108,1762964566463,-150.0,0.00049015,30]
[393753109,1762964566508,-150.0,0.00049015,30]
[393753110,1762964566553,-150.0,0.00049015,30]
[393753111,1762964566747,-150.0,0.00049015,30]
[393753112,1762964566791,-150.0,0.00049015,30]
[393753113,1762964566838,-250.0,0.00049015,30]
[393753114,1762964566887,-150.0,0.00049015,60]
[393753115,1762964566941,-150.0,0.00049015,60]
[393753116,1762964566984,-200.0,0.00049015,60]
[393753117,1762964567028,-153.17750614,0.00049041,30]
[393753118,1762964567077,-153.0,0.000491,120]
[393753119,1762964567131,-500000.0,0.000491,120]
[393753120,1762964567182,-155.0,0.000492,120]
[393753121,1762964567232,-500000.0,0.000492,120]
[393753122,1762964567280,-500000.0,0.0004925,120]
[393753123,1762964567330,-500000.0,0.000493,120]
[393753124,1762964567373,-500.0,0.00049315,120]
[393753125,1762964567415,-500.0,0.00049315,120]
[393753126,1762964567458,-500.0,0.00049315,120]
[393753127,1762964567503,-500.0,0.00049315,120]
[393753128,1762964567547,-436.63209979,0.00049315,120]
[393753129,1762964567591,-324.16590719,0.00049315,120]
[393753130,1762964567634,-422.42202689,0.00049315,120]
[393753131,1762964567677,-600.0,0.00049315,30]
[393753132,1762964567719,-600.0,0.00049315,30]
[393753133,1762964567763,-600.0,0.00049315,30]
[393753134,1762964567810,-600.0,0.00049315,30]
[393753135,1762964567853,-588.22935508,0.00049315,30]
[393753136,1762964567895,-593.30959474,0.00049315,30]
[393753137,1762964567937,-161.68589997,0.00049315,30]
[393753138,1762964567981,-270.62487157,0.00049315,30]
[393753139,1762964568025,-500.0,0.00049315,33]
[393753140,1762964568070,-153.17750614,0.00049342,30]
[393753141,1762964568117,-500000.0,0.000494,120]
[393753142,1762964568162,-209657.57391981,0.000495,120]
[393753143,1762964580986,-200.68,0.000403,30]
[393753144,1762964581049,-151.0,0.00040434,120]
[393753145,1762964581170,-200.68,0.000416,30]
[393753146,1762964581232,-200.68,0.000429,30]
[393753147,1762964581309,-1000000.0,0.00046,120]
[393753148,1762964581369,-1000000.0,0.00046,120]
[393753149,1762964581428,-500000.0,0.000465,120]
[393753150,1762964581488,-1000000.0,0.00047,120]
[393753151,1762964581545,-500000.0,0.00047,120]
[393753152,1762964581607,-500000.0,0.00047,120]
[393753153,1762964581663,-499246.96,0.00047,120]
[393753154,1762964585581,-200.68,0.000447,30]
[393753155,1762964585634,-200.68,0.000463,30]
[393753156,1762964585685,-500000.0,0.000467,120]
[393753157,1762964585737,-753.04,0.00047,120]
[393753158,1762964585785,-500000.0,0.00047,120]
[393753159,1762964585834,-200.68,0.000478,30]
[393753160,1762964585884,-1000000.0,0.00048,120]
[393753161,1762964585936,-290342.42608019,0.000495,120]
[393753162,1762964586001,-500000.0,0.000495,120]
[393753163,1762964586050,-1161.22318543,0.000495,120]
[393753164,1762964586096,-150.0,0.000495,120]
[393753165,1762964586146,-500000.0,0.000496,120]
[393753166,1762964586194,-153.17750614,0.00049644,30]
[393753167,1762964586243,-200.68,0.000497,30]
[393753168,1762964586290,-2229.90709023,0.00049885,120]
[393753169,1762964586647,-153.0,0.000499,120]
[393753170,1762964586695,-283.89682269,0.00049999,120]
[393753171,1762964586749,-253.01214726,0.00049999,120]
[393753172,1762964586802,-500.0,0.00049999,120]
[393753173,1762964586861,-450.0,0.00049999,120]
[393753174,1762964586909,-415.26630823,0.00049999,120]
[393753175,1762964586954,-454.14239897,0.00049999,120]
[393753176,1762964587003,-400.53896046,0.00049999,120]
[393753177,1762964587049,-403.55134799,0.00049999,120]
[393753178,1762964587096,-500.0,0.00049999,120]
[393753179,1762964587142,-500.0,0.00049999,120]
[393753180,1762964587189,-468.95471919,0.00049999,120]
[393753181,1762964587232,-500.0,0.00049999,120]
[393753182,1762964587275,-500.0,0.00049999,120]
[393753183,1762964587320,-500.0,0.00049999,120]
[393753184,1762964587362,-500.0,0.00049999,120]
[393753185,1762964587404,-441.61981198,0.00049999,120]
[393753186,1762964587446,-500.0,0.00049999,120]
[393753187,1762964587491,-500.0,0.00049999,120]
[393753188,1762964587534,-500.0,0.00049999,120]
[393753189,1762964587577,-324.42613646,0.00049999,120]
[393753190,1762964587620,-500.0,0.00049999,120]
[393753191,1762964587663,-639.03977277,0.00049999,120]
[393753192,1762964587710,-500.0,0.00049999,120]
[393753193,1762964587758,-290.96,0.0005,120]
[393753194,1762964587807,-457.72199812,0.0005,120]
[393753195,1762964587861,-217.59100313,0.0005,120]
[393753196,1762964587906,-735.62979195,0.0005,120]
[393753197,1762964587952,-1073.27899357,0.0005,120]
[393753198,1762964587998,-1083.33703616,0.0005,120]
[393753199,1762964588046,-225.03998704,0.0005,120]
[393753200,1762964588096,-165.07826133,0.0005,120]
[393753201,1762964588147,-500.0,0.0005,30]
[393753202,1762964588193,-616.00605298,0.0005,120]
[393753203,1762964588242,-200.0,0.0005,120]
[393753204,1762964588292,-687.71,0.0005,30]
[393753205,1762964588346,-98951.44,0.0005,120]
[393753206,1762964588395,-500.0,0.00050078,120]
[393753207,1762964588444,-155.0,0.000502,120]
[393753208,1762964588495,-2073.04387239,0.000505,120]
[393753209,1762964588545,-153.0,0.000506,120]
[393753210,1762964588590,-200.0,0.00050708,120]
[393753211,1762964588635,-500.0,0.00050755,120]
[393753212,1762964588679,-1137.38645348,0.000509,120]
[393753213,1762964588724,-1000.0,0.00051,120]
[393753214,1762964588771,-1434.76285289,0.00051,120]
[393753215,1762964588815,-949.24452174,0.00051,120]
[393753216,1762964588864,-735.77666895,0.00051,120]
[393753217,1762964588910,-155.0,0.000512,120]
[393753218,1762964588959,-200.0,0.000512,120]
[393753219,1762964589008,-153.0,0.000513,120]
[393753220,1762964589057,-1000.0,0.00051346,120]
[393753221,1762964589103,-300.0,0.00051356,120]
[393753222,1762964589150,-1850.19,0.000516,120]
[393753223,1762964589203,-1850.19,0.000516,120]
[393753224,1762964589251,-1850.19,0.000516,120]
[393753225,1762964589298,-150.0,0.00051755,30]
[393753226,1762964589347,-150.0,0.00051755,30]
[393753227,1762964589409,-150.0,0.00051755,30]
[393753228,1762964589456,-150.0,0.00051755,30]
[393753229,1762964589502,-150.0,0.00051755,30]
[393753230,1762964589548,-150.0,0.00051755,30]
[393753231,1762964589598,-250.0,0.00051755,30]
[393753232,1762964589643,-154.00223622,0.00051755,30]
[393753233,1762964589689,-150.0,0.00051755,30]
[393753234,1762964589739,-150.0,0.00051755,30]
[393753235,1762964589786,-454.0,0.00051755,30]
[393753236,1762964589836,-454.0,0.00051755,30]
[393753237,1762964589889,-454.0,0.00051755,30]
[393753238,1762964589937,-454.0,0.00051755,30]
[393753239,1762964589984,-454.0,0.00051755,30]
[393753240,1762964590032,-454.0,0.00051755,30]
[393753241,1762964590080,-454.0,0.00051755,30]
[393753242,1762964590127,-454.0,0.00051755,30]
[393753243,1762964590173,-454.0,0.00051755,30]
[393753244,1762964590220,-454.0,0.00051755,30]
[393753245,1762964590265,-454.0,0.00051755,30]
[393753246,1762964590309,-454.0,0.00051755,30]
[393753247,1762964590355,-454.0,0.00051755,30]
[393753248,1762964590402,-454.0,0.00051755,30]
[393753249,1762964590448,-454.0,0.00051755,30]
[393753250,1762964590494,-454.0,0.00051755,30]
[393753251,1762964590538,-454.0,0.00051755,30]
[393753252,1762964590581,-454.0,0.00051755,30]
[393753253,1762964590629,-454.0,0.00051755,30]
[393753254,1762964590671,-454.0,0.00051755,30]
[393753255,1762964590714,-454.0,0.00051755,30]
[393753256,1762964590758,-454.0,0.00051755,30]
[393753257,1762964590800,-454.0,0.00051755,30]
[393753258,1762964590846,-466.44290651,0.00051755,30]
[393753259,1762964590887,-150.0,0.00051755,30]
[393753260,1762964590931,-150.0,0.00051755,30]
[393753261,1762964590970,-150.0,0.00051755,30]
[393753262,1762964591012,-200.0,0.00051755,30]
[393753263,1762964591055,-150.0,0.00051755,30]
[393753264,1762964591098,-194.61212321,0.00051755,30]
[393753265,1762964591145,-1102.44521298,0.00052,120]
[393753266,1762964591196,-200.0,0.00052,120]
[393753267,1762964591247,-611.0,0.00052,120]
[393753268,1762964591291,-934.78,0.00052054,120]
[393753269,1762964591333,-500.0,0.00052054,120]
[393753270,1762964591375,-466.06107422,0.00052054,120]
[393753271,1762964591579,-908.8,0.00052055,120]
[393753272,1762964591629,-153.0,0.000521,120]
[393753273,1762964591678,-155.0,0.000522,120]
[393753274,1762964591728,-934.78,0.00052328,120]
[393753275,1762964591774,-500.0,0.00052328,120]
[393753276,1762964591820,-2000.0,0.0005253,63]
[393753277,1762964591874,-934.78,0.00052602,120]
[393753278,1762964591924,-500.0,0.00052602,120]
[393753279,1762964591976,-2000.0,0.00052685,120]
[393753280,1762964592026,-1403.31090562,0.000527,120]
[393753281,1762964592072,-150.0,0.00052797,120]
[393753282,1762964592117,-153.0,0.000528,120]
[393753283,1762964592162,-934.78,0.00052876,120]
[393753284,1762964592206,-500.0,0.00052876,120]
[393753285,1762964592252,-1543.0,0.00053,120]
[393753286,1762964592297,-1689.0,0.00053,120]
[393753287,1762964592342,-1000.0,0.00053,120]
[393753288,1762964592387,-416.48943486,0.00053,120]
[393753289,1762964592429,-1435.64,0.00053127,120]
[393753290,1762964592474,-934.78,0.0005315,120]
[393753291,1762964592516,-500.0,0.0005315,120]
[393753292,1762964592560,-155.0,0.000533,120]
[393753293,1762964592603,-2082.80185956,0.000534,120]
[393753294,1762964592649,-934.78,0.00053424,120]
[393753295,1762964592694,-500.0,0.00053424,120]
[393753296,1762964592741,-153.0,0.000535,120]
[393753297,1762964592792,-934.78,0.00053698,120]
[393753298,1762964592838,-500.0,0.00053698,120]
[393753299,1762964592887,-1000.0,0.000538,120]
[393753300,1762964592934,-150.0,0.00053817,120]
[393753301,1762964592979,-581.049,0.0005391,101]
[393753302,1762964593026,-934.78,0.00053972,120]
[393753303,1762964593070,-473.97588296,0.00053972,120]
[393753304,1762964593114,-2000.00000099,0.00053998,31]
[393753305,1762964593160,-1731.9748792,0.00053999,120]
[393753306,1762964593203,-206.20153531,0.00053999,120]
[393753307,1762964593246,-213.60766849,0.00053999,120]
[393753308,1762964593289,-304.52226177,0.00054,120]
[393753309,1762964593333,-726.5715691,0.00054,120]
[393753310,1762964593379,-5000.0,0.00054,120]
[393753311,1762964593424,-5000.0,0.00054,120]
[393753312,1762964593466,-5000.0,0.00054,120]
[393753313,1762964593511,-5000.0,0.00054,120]
[393753314,1762964593555,-5000.0,0.00054,120]
[393753315,1762964593597,-5000.0,0.00054,120]
[393753316,1762964593639,-5000.0,0.00054,120]
[393753317,1762964593682,-200.0,0.00054,120]
[393753318,1762964593725,-5000.0,0.00054,120]
[393753319,1762964593768,-5000.0,0.00054,120]
[393753320,1762964593817,-5000.0,0.00054,120]
[393753321,1762964593867,-1031.73658,0.00054,120]
[393753322,1762964593911,-6477.968207,0.00054,120]
[393753323,1762964593953,-1186.55565218,0.00054,120]
[393753324,1762964593999,-919.72083619,0.00054,120]
[393753325,1762964594046,-185110.85989163,0.000541,30]
[393753326,1762964594093,-902.93,0.0005411,120]
[393753327,1762964594138,-150.0,0.00054126,120]
[393753328,1762964594182,-934.78,0.00054246,120]
[393753329,1762964594227,-1407.47252673,0.00054247,120]
[393753330,1762964594272,-155.0,0.000543,120]
[393753331,1762964594316,-153.0,0.000543,120]
[393753332,1762964594361,-153.0,0.00054369,120]
[393753333,1762964594405,-153.0,0.00054369,120]
[393753334,1762964594450,-153.0,0.00054369,120]
[393753335,1762964594495,-153.0,0.00054369,120]
[393753336,1762964594542,-153.0,0.00054369,120]
[393753337,1762964594596,-153.0,0.00054369,120]
[393753338,1762964594649,-153.0,0.00054369,120]
[393753339,1762964594703,-153.0,0.00054369,120]
[393753340,1762964594752,-153.0,0.00054369,120]
[393753341,1762964594803,-153.0,0.00054369,120]
[393753342,1762964594859,-153.0,0.00054369,120]
[393753343,1762964594910,-2000.0,0.0005444,49]
[393753344,1762964594962,-934.78,0.0005452,120]
[393753345,1762964595012,-230.0,0.00054569,120]
[393753346,1762964595065,-230.0,0.00054569,120]
[393753347,1762964595114,-230.0,0.00054569,120]
[393753348,1762964595162,-230.0,0.00054569,120]
[393753349,1762964595212,-230.0,0.00054569,120]
[393753350,1762964595262,-230.0,0.00054569,120]
[393753351,1762964595314,-245.0,0.00054596,120]
[393753352,1762964595364,-245.0,0.00054596,120]
[393753353,1762964595412,-150.0,0.000547,120]
[393753354,1762964595462,-157.0,0.000547,120]
[393753355,1762964595512,-934.78,0.00054794,120]
[393753356,1762964595566,-500.0,0.00054794,120]
[393753357,1762964595618,-500.0,0.00054794,120]
[393753358,1762964595666,-500.0,0.00054794,120]
[393753359,1762964595712,-580.49307085,0.00054794,120]
[393753360,1762964595758,-150.0,0.00054795,120]
[393753361,1762964595815,-150.0,0.00054795,120]
[393753362,1762964595864,-150.0,0.00054795,120]
[393753363,1762964595920,-150.0,0.00054795,120]
[393753364,1762964595967,-150.0,0.00054795,120]
[393753365,1762964596017,-150.0,0.00054795,120]
[393753366,1762964596065,-150.0,0.00054795,120]
[393753367,1762964596112,-150.0,0.00054795,120]
[393753368,1762964596156,-150.0,0.00054795,120]
[393753369,1762964596201,-150.0,0.00054795,120]
[393753370,1762964596246,-150.0,0.00054795,120]
[393753371,1762964596289,-150.0,0.00054795,120]
[393753372,1762964596332,-150.0,0.00054795,120]
[393753373,1762964596375,-164.68874973,0.00054795,120]
[393753374,1762964596421,-150.0,0.00054795,120]
[393753375,1762964596583,-150.0,0.00054795,120]
[393753376,1762964596626,-150.0,0.00054795,120]
[393753377,1762964596671,-150.0,0.00054795,120]
[393753378,1762964596717,-150.0,0.00054795,120]
[393753379,1762964596770,-500.0,0.00054795,35]
[393753380,1762964596974,257.36782787,0.00051755,30]
[393753381,1762964597031,279.0,0.00054344,120]
[393753382,1762964597133,279.0,0.00054344,120]
[393753383,1762964597227,279.0,0.00054344,120]
[393753384,1762964597290,600.0,0.00049499,120]
[393753385,1762964597347,279.0,0.00054344,120]
[393753386,1762964597411,600.0,0.00049499,120]
[393753387,1762964597474,279.0,0.00054344,120]
[393753388,1762964597540,600.0,0.00049499,120]
[393753389,1762964597626,600.0,0.00049499,120]
[393753390,1762964597718,600.0,0.00049499,120]
[393753391,1762964597794,600.0,0.00049499,120]
[393753392,1762964597875,600.0,0.00049499,120]
[393753393,1762964597972,600.0,0.00049499,120]
[393753394,1762964598085,600.0,0.00049499,120]
[393753395,1762964598150,600.0,0.00049499,120]
[393753396,1762964598229,600.0,0.00049499,120]
[393753397,1762964598294,600.0,0.00049499,120]
[393753398,1762964598504,600.0,0.00049499,120]
[393753399,1762964598593,150.0,0.00054495,120]
[393753400,1762964598649,600.0,0.00049499,120]
[393753401,1762964598712,600.0,0.00049499,120]
[393753402,1762964599078,600.0,0.00049499,120]
[393753403,1762964599722,600.0,0.00049499,120]
[393753404,1762964600346,600.0,0.00049499,120]
[393753405,1762964601025,600.0,0.00049499,120]
[393753406,1762964601646,600.0,0.00049499,120]
[393753407,1762964602209,500.0,0.00043115,120]
[393753408,1762964602277,150.0,0.00054495,120]
[393753409,1762964602618,500.0,0.00045215,120]
[393753410,1762964603039,513.700026,0.00051702,120]
[393753411,1762964603646,1664.61,0.0003023,90]
[393753412,1762964708538,10000.01,0.00018,2]
[393753413,1762964708567,10000.01,0.00018,2]
[393753414,1762964708598,10000.01,0.00018,2]
[393753415,1762964708625,10000.01,0.00018,2]
[393753416,1762964708655,10000.01,0.00018,2]
[393753417,1762964708683,10000.01,0.00018,2]
[393753418,1762964708710,10000.01,0.00018,2]
[393753419,1762964708739,10000.01,0.00018,2]
[393753420,1762964708765,10000.01,0.00018,2]
[393753421,1762964708792,10000.01,0.00018,2]
[393753422,1762964708819,10000.01,0.00018,2]
[393753423,1762964708847,10000.01,0.00018,2]
[393753424,1762964708879,10000.01,0.00018,2]
[393753425,1762964708912,10000.01,0.00018,2]
[393753426,1762964708943,10000.01,0.00018,2]
[393753427,1762964708973,50000.0,0.00018,2]
[393753428,1762964709009,3700.0,0.00018,2]
[393753429,1762964709041,3313011.24288363,0.00018,2]
[393753431,1762964753307,10000.01,0.0001999,2]
[393753432,1762964753334,6785.86873428,0.0001999,2]
[393753433,1762964762175,200.0,0.00040434,30]
[393753434,1762964815234,3214.14126572,0.000162,5]
[393753435,1762964815257,10000.01,0.000162,5]
[393753436,1762964815286,10000.01,0.000162,5]
[393753437,1762964815310,10000.01,0.000162,5]
[393753438,1762964815335,10000.01,0.000162,5]
[393753439,1762964815358,9267.3908641,0.000162,5]
[393753442,1762964860628,1003.05,0.00040468,30]
[393753443,1762964873315,856346.98589947,0.00015,2]
[393753448,1762964914202,3968.23068613,0.00014999,2]
[393753451,1762964918626,31.76931387,0.00015,3]
[393753452,1762964918650,4000.0,0.00015,3]
[393753453,1762964918675,4000.0,0.00015,3]
[393753454,1762964918699,4000.0,0.00015,3]
[393753455,1762964918722,4000.0,0.00015,3]
[393753456,1762964918745,4000.0,0.00015,3]
[393753457,1762964918770,1470.8349771,0.00015,3]
[393753460,1762964941827,-168.86324805,0.00020187,2]
[393753466,1762964987855,-16.68675195,0.00020187,2]
[393753467,1762964987877,-218.29261088,0.00020251,2]
[393753484,1762965031814,-31.70738912,0.00020251,2]
[393753485,1762965031826,-151.49084265,0.000205,2]
[393753486,1762965031837,-2412.00164807,0.00021888,2]
[393753487,1762965031851,-390.91720493,0.00021888,2]
[393753488,1762965031862,-1100.0,0.00021999,2]
[393753489,1762965031879,-741.18419909,0.00021999,2]
[393753490,1762965031894,-458.81580091,0.00021999,2]
[393753491,1762965031905,-300.0,0.00021999,2]
[393753492,1762965031915,-17.3412372,0.00022,4]
[393753493,1762965031928,-257.87596969,0.00022,4]
[393753494,1762965031944,-37851.85854503,0.00022,4]
[393753495,1762965031958,-20522.15183693,0.00022,4]
[393753496,1762965031973,-8637.63615459,0.00022,4]
[393753497,1762965031984,-1200.0,0.00022205,2]
[393753498,1762965031996,-1263.88875904,0.00022206,2]
[393753499,1762965032007,-250.0,0.00022206,2]
[393753500,1762965032018,-250.0,0.00022206,2]
[393753501,1762965032029,-195.0,0.00022206,2]
[393753502,1762965032040,-300.61352596,0.00022206,2]
[393753503,1762965032053,-635.0,0.00022879,2]
[393753504,1762965032065,-200.0,0.000235,2]
[393753505,1762965032075,-420.0,0.00023906,2]
[393753506,1762965032086,-1039.97299087,0.00024,14]
[393753507,1762965032102,-3600.0,0.00024,2]
[393753508,1762965032113,-10746.38242042,0.00024,2]
[393753509,1762965032125,-1680.0,0.00024018,2]
[393753510,1762965032137,-187.0,0.00024125,2]
[393753511,1762965032148,-500.0,0.0002435,2]
[393753512,1762965032159,-500.0,0.0002435,2]
[393753513,1762965032170,-500.0,0.000245,2]
[393753514,1762965032181,-268.57779596,0.0002465,2]
[393753515,1762965032192,-360.0,0.00025,2]
[393753516,1762965032203,-1498.39367803,0.00025,2]
[393753517,1762965032214,-10449.48949884,0.00025412,2]
[393753518,1762965032225,-587.0,0.00025977,2]
[393753519,1762965032236,-2351.0,0.00026222,2]
[393753520,1762965032246,-151.0,0.0002666,2]
[393753521,1762965032256,-151.0,0.0002666,2]
[393753522,1762965032267,-151.0,0.0002666,2]
[393753523,1762965032277,-151.0,0.0002666,2]
[393753524,1762965032288,-151.0,0.0002666,2]
[393753525,1762965032299,-151.0,0.0002666,2]
[393753526,1762965032310,-151.0,0.0002666,2]
[393753527,1762965032321,-151.0,0.0002666,2]
[393753528,1762965032332,-151.0,0.0002666,2]
[393753529,1762965032343,-151.0,0.0002666,2]
[393753530,1762965032354,-151.0,0.0002666,2]
[393753531,1762965032367,-151.0,0.0002666,2]
[393753532,1762965032378,-151.0,0.0002666,2]
[393753533,1762965032390,-151.0,0.0002666,2]
[393753534,1762965032402,-151.0,0.0002666,2]
[393753535,1762965032412,-151.0,0.0002666,2]
[393753536,1762965032423,-151.0,0.0002666,2]
[393753537,1762965032433,-151.0,0.0002666,2]
[393753538,1762965032444,-151.0,0.0002666,2]
[393753539,1762965032455,-173.18881178,0.0002666,2]
[393753540,1762965032466,-185.55,0.00026676,2]
[393753541,1762965032477,-637.68,0.00026676,2]
[393753542,1762965032488,-150.99,0.00026676,2]
[393753543,1762965032499,-150.99,0.00026676,2]
[393753544,1762965032510,-7086.08310004,0.00026676,2]
[393753545,1762965032523,-1621.73849155,0.00026676,2]
[393753546,1762965032544,-1118.27716,0.00026676,2]
[393753547,1762965032557,-173.89124841,0.00026676,2]
[393753548,1762965032568,-1092.45141542,0.00026676,2]
[393753549,1762965032580,-768.05176866,0.00026676,2]
[393753550,1762965032601,-1016.015,0.00026676,2]
[393753551,1762965032626,-7044.19999998,0.00026676,2]
[393753552,1762965032638,-79.27181594,0.00026676,2]
[393753553,1762965032649,-999.99,0.00026676,2]
[393753554,1762965032659,-823.0,0.00028229,2]
[393753555,1762965032670,-129.15630406,0.00028628,2]
[393753568,1762965038247,-285.02815616,0.00028628,2]
[393753570,1762965038259,-309.99999999,0.00028628,2]
[393753577,1762965038319,-2567.81553979,0.00028628,2]
[393753579,1762965038329,-255.42,0.00029627,2]
[393753581,1762965038340,-160.5,0.0003,2]
[393753583,1762965038350,-1745.88282958,0.0003,14]
[393753585,1762965038360,-4558.89569394,0.0003,2]
[393753586,1762965038374,-9999.99,0.0003023,2]
[393753587,1762965038385,-6856.77189134,0.0003023,2]
[393753588,1762965038397,-1928.80999808,0.0003023,2]
[393753589,1762965038411,-1214.40811058,0.0003023,2]
[393753590,1762965038420,-298.22613208,0.00030351,30]
[393753591,1762965038430,-190.0,0.00030675,2]
[393753592,1762965038440,-4204.59,0.00031156,2]
[393753593,1762965038450,-4609.0,0.00031255,3]
[393753594,1762965038460,-381.28582366,0.00031685,2]
[393753595,1762965038474,-1411.04048148,0.00031685,2]
[393753596,1762965038484,-972.55832726,0.00032,120]
[393753597,1762965038494,-7459.8,0.00032449,2]
[393753598,1762965038506,-500.0,0.00032767,2]